Cogmind - Beta 11.1 @@@ ROGUE MODE // 2022.06.27 @ 21:31:41 Player: Hanyouslayer Result: Destroyed by as-90772 with Assembled Rifle Performance ------------- Evolutions (0) 0 Regions Visited (2) 400 Robots Destroyed (10) 50 Value Destroyed (196) 196 Prototype IDs (0) 0 Alien Tech Used (0) 0 Bonus (0) 0 TOTAL SCORE: 646 Bonus ------- None Cogmind --------- Core Integrity 0/250 Matter 52/300 Energy 100/100 System Corruption 1% Temperature Cool (32) Movement Treading (240) Ox1 Location -10/Mines Parts ------- > --- POWER (1) -------- (None) > --- PROPULSION (2) --- Light Treads Light Treads > --- UTILITY (2) ------ Large Storage Unit Large Storage Unit > --- WEAPON (2) ------- Light Assault Rifle > --- INVENTORY (15) --- Ion Engine Light Ion Engine Heat Sink Terrain Scan Processor Small Laser Peak State ------------ > --- POWER ------------ Ion Engine > --- PROPULSION ------- Wheel Wheel > --- UTILITY ---------- Large Storage Unit Light Armor Plating > --- WEAPON ----------- Assault Rifle Light Assault Rifle > --- INVENTORY -------- Ion Engine Light Ion Engine Light Treads Light Treads Heat Sink Large Storage Unit Terrain Scan Processor Small Laser Grenade Launcher [Rating: 8] Favorites ----------- Power Ion Engine Engine Ion Engine Propulsion Wheel Treads Light Treads Wheel Wheel Utility Small Storage Unit Device Structural Scanner Storage Small Storage Unit Protection Light Armor Plating Weapon Assault Rifle Energy Gun EM Pulse Gun Ballistic Gun Assault Rifle Launcher Grenade Launcher Build | -11 -10 -10 ------- Run | Scr Mat Min Slots Evolved . | . . . Power . | . . . Propulsion . | . . . Utility . | . . . Weapon . | . . . Parts Attached 18 | 7 6 5 Power 2 | 1 1 . Engine 2 | 1 1 . Core . | . . . Reactor . | . . . Propulsion 5 | 2 1 2 Treads 2 | . . 2 Leg . | . . . Wheel 3 | 2 1 . Hover . | . . . Flight . | . . . Utility 5 | 1 3 1 Device 1 | . 1 . Storage 3 | 1 1 1 Processor . | . . . Hackware . | . . . Protection 1 | . 1 . Artifact . | . . . Weapon 6 | 3 1 2 Energy Gun 1 | 1 . . Energy Cannon . | . . . Ballistic Gun 4 | 2 1 1 Ballistic Cannon . | . . . Launcher 1 | . . 1 Special Weapon . | . . . Impact Weapon . | . . . Slashing Weapon . | . . . Piercing Weapon . | . . . Special Melee Weapon . | . . . Unidentified Prototypes . | . . . Parts Lost 9 | . 3 6 Power 2 | . 1 1 Propulsion 3 | . 1 2 Utility 1 | . . 1 Weapon 3 | . 1 2 Highest Loss Streak 6 | . 2 6 To Critical Strikes . | . . . Average Slot Usage (%) 90 | . 91 71 Engine 13 | . 13 14 Wheel 26 | . 27 14 Device 5 | . 5 . Storage 14 | . 14 14 Protection 2 | . 2 . Energy Gun 4 | . 4 . Ballistic Gun 22 | . 22 14 Naked Turns . | . . . Heaviest Build 31 | 14 31 31 Greatest Support 20 | 20 20 20 Greatest Overweight (x) 1 | . 1 1 Average Overweight (x) . | . . 1 Largest Inventory Capacity 15 | 8 15 15 Average Capacity 8 | 6 8 15 Most Carried 9 | 4 9 9 Average Carried 4 | 1 5 7 Final Capacity 15 | 8 15 15 Final Carried 9 | 4 9 5 Class Distribution -------------------- 100% | Mutant Dominant Class ---------------- Mutant | -10/Materials Mutant | -10/Mines Resources | -11 -10 -10 ----------- Run | Scr Mat Min Matter Collected 225 | 194 31 . Remotely . | . . . Salvage Created 281 | . 257 24 Parts 13 | . 13 . Haulers Intercepted . | . . . Recyclers Shooed . | . . . Parts Field Recycled . | . . . Retrieved Matter . | . . . Parts Self-Destructed . | . . . Prevented . | . . . Kills | -11 -10 -10 ------- Run | Scr Mat Min Combat Hostiles Destroyed 18 | . 10 8 Guns 10 | . 9 1 AOE 8 | . 1 7 Classes Destroyed 3 | . 2 1 Swarmer 6 | . 6 . Grunt 4 | . 4 . Assembled 8 | . . 8 Best Kill Streak 8 | . 8 8 Combat Bots Only 8 | . 8 8 Max Kills in Single Turn 4 | . 1 4 Gunslinging . | . . . Exploded 4 | . 1 4 Melee . | . . . Uniques/NPCs Destroyed . | . . . Combat | -11 -10 -10 -------- Run | Scr Mat Min Damage Taken 1082 | . 339 743 Core 253 | . 98 155 Absorbed by Shields . | . . . Core Remaining (%) 100 | 100 . . Volleys Fired 33 | . 28 5 Largest 2 | . 2 2 Hottest 60 | . 60 50 Shots Fired 62 | . 54 8 Gun 59 | . 54 5 Cannon . | . . . Launcher 3 | . . 3 Special . | . . . Kinetic 46 | . 41 5 Thermal . | . . . Explosive 3 | . . 3 Electromagnetic 13 | . 13 . Robot Hit Streak 12 | . 12 2 Robot Miss Streak 4 | . 4 4 Penetration Max . | . . . Secondary Targets 1 | . 1 . Max Gunslinging Chain 1 | . 1 . Shots Hit Robots 34 | . 31 3 Core Hits 41 | . 14 27 Critical Kills . | . . . Critical Parts Destroyed . | . . . Critical Strikes . | . . . Melee Attacks . | . . . Impact . | . . . Slashing . | . . . Piercing . | . . . Sneak Attacks . | . . . Combat Hostiles . | . . . Follow-up Attacks . | . . . Damage Inflicted 1255 | . 429 826 Guns 389 | . 359 30 Cannons . | . . . Explosions 866 | . 70 796 Melee . | . . . Ramming . | . . . Kinetic 259 | . 229 30 Thermal 70 | . 70 . Explosive 796 | . . 796 Electromagnetic 130 | . 130 . Impact . | . . . Slashing . | . . . Piercing . | . . . Highest Corruption 1 | . . 1 Average Corruption 1 | . . 1 Corruption Purged . | . . . Corruption Blocked . | . . . Overload Shots . | . . . Overflow Damage 3 | . . 3 Projectiles . | . . . Explosions 3 | . . 3 Melee . | . . . Knockbacks . | . . . Impact . | . . . Kinetic . | . . . Secondary . | . . . Self-Inflicted Damage 25 | . 25 . Shots 1 | . 1 . Rammed . | . . . Targets Rammed . | . . . Kicked . | . . . Crushed . | . . . Highest Temperature 90 | . 72 90 Average Temperature 39 | . 37 43 Received Heat Transfer 288 | . 108 180 Siege Activations . | . . . Robots Corrupted . | . . . Combat Hostiles . | . . . Parts Fried . | . . . Impact Corruptions . | . . . Robots Melted . | . . . Combat Hostiles . | . . . Parts Melted . | . . . Heat Transferred 150 | . 150 . Parts Sabotaged . | . . . Parts Stolen . | . . . Parts Stripped . | . . . Power Chain Reactions 1 | . 1 . Missiles Intercepted . | . . . Alert | -11 -10 -10 ------- Run | Scr Mat Min Peak Influence 242 | . 242 131 Initial 94 | . . 94 Average 128 | . 158 107 Maximum Alert Level 1 | . 1 . Low Security (%) 66 | 100 55 100 Level 1 33 | . 44 . Level 2 . | . . . Level 3 . | . . . Level 4 . | . . . Level 5 . | . . . High Security . | . . . Max Security . | . . . Squads Dispatched 1 | . 1 . Investigation 1 | . 1 . Extermination . | . . . Reinforcement . | . . . Assault . | . . . Garrison . | . . . Intercept . | . . . Searches Triggered . | . . . Construction Impeded . | . . . Haulers Reinforced . | . . . Active Scanning Responses . | . . . Cargo Convoy Interrupts . | . . . Stealth | -11 -10 -10 --------- Run | Scr Mat Min Distress Signals . | . . . Communications Jammed . | . . . Distress Signals . | . . . Times Spotted 32 | . 13 19 Peak Tracking Total 20 | . 4 20 Tactical Retreats 1 | . 1 . Traps | -11 -10 -10 ------- Run | Scr Mat Min Traps Triggered 1 | . 1 . Indirectly . | . . . Trap Hack Attempts . | . . . Triggered . | . . . Disarmed . | . . . Reprogrammed . | . . . Reused . | . . . Traps Extracted . | . . . Installed . | . . . Triggered . | . . . Machines | -11 -10 -10 ---------- Run | Scr Mat Min Machines Disabled . | . . . Max in Single Turn . | . . . Machines Sabotaged . | . . . Garrisons Compromised . | . . . Overloaded Fab Kills . | . . . Hacking | -11 -10 -10 --------- Run | Scr Mat Min Machines Accessed . | . . . Terminals . | . . . Fabricators . | . . . Repair Stations . | . . . Recycling Units . | . . . Scanalyzers . | . . . Garrison Access . | . . . Total Hacks . | . . . Successful . | . . . Failed . | . . . Catastrophic . | . . . Database Lockouts . | . . . Manual . | . . . Terminals . | . . . Fabricators . | . . . Repair Stations . | . . . Recycling Units . | . . . Scanalyzers . | . . . Garrison Access . | . . . Terminal Hacks . | . . . Fabricator Hacks . | . . . Repair Station Hacks . | . . . Recycling Unit Hacks . | . . . Scanalyzer . | . . . Garrison Access Hacks . | . . . Unauthorized Hacks . | . . . Terminals . | . . . Fabricators . | . . . Repair Stations . | . . . Recycling Units . | . . . Scanalyzers . | . . . Garrison Access . | . . . Data Cores Recovered . | . . . Used . | . . . Hacking Detections . | . . . Full Trace Events . | . . . Feedback Events . | . . . Feedback Blocked . | . . . Robot Schematics Acquired . | . . . Robots Built . | . . . Authchips . | . . . Time . | . . . Total Robot Build Rating . | . . . Part Schematics Acquired . | . . . Parts Built . | . . . Authchips . | . . . Time . | . . . Total Part Build Rating . | . . . Parts Repaired . | . . . Time . | . . . Parts Recycled . | . . . Recycled Matter . | . . . Retrieved Matter . | . . . Retrieved Components . | . . . Parts Scanalyzed . | . . . Part Schematics Acquired . | . . . Parts Damaged . | . . . Bothacking | -11 -10 -10 ------------ Run | Scr Mat Min Used RIF Installer . | . . . Robots Hacked . | . . . Non-combat . | . . . Combat . | . . . Robot Hacks Applied . | . . . Relay Couplers Released . | . . . Fabnet Peak Effective % . | . . . Robots Rewired . | . . . Allies Hacked . | . . . Hacks Repelled . | . . . Allies | -11 -10 -10 -------- Run | Scr Mat Min Total Allies . | . . . Largest Group . | . . . Highest-Rated Group . | . . . Highest-Rated Ally . | . . . Total Orders . | . . . Ally Attacks . | . . . Total Damage . | . . . Kills . | . . . Allies Corrupted . | . . . Allies Melted . | . . . Intel | -11 -10 -10 ------- Run | Scr Mat Min Robot Analysis Total . | . . . Derelict Logs Recovered . | . . . Drone Launches . | . . . Drone Recoveries . | . . . Exploration | -11 -10 -10 ------------- Run | Scr Mat Min Turns Passed 258 | 43 196 19 Spaces Moved 157 | 39 117 1 Core 3 | 3 . . Treads . | . . . Legs . | . . . Wheels 154 | 36 117 1 Hover . | . . . Flight . | . . . Fastest Speed 50 | 50 80 95 Average Speed 80 | 77 81 95 Slowest Speed 95 | 80 95 95 Overloaded Moves . | . . . Propulsion Burnouts . | . . . Robots Hopped . | . . . Cave-ins Triggered . | . . . Exploration Rate (%) 13 | 3 26 10 Regions Visited 2 Branch Regions 1 Pre-discovered Areas . | . . . Known Exits Taken . | . . . Unknown Exits Taken 2 | 1 1 . Scrap Searched . | . . . Spaces Dug . | . . . Terrain Destroyed 22 | . 2 20 Melee . | . . . Projectile . | . . . AOE 22 | . 2 20 Terrain Rammed . | . . . Walls Destroyed . | . . . Machines Disabled . | . . . Actions | -11 -10 -10 --------- Run | Scr Mat Min Total 224 | 48 165 11 Wait 6 | . 6 . Move 155 | 38 116 1 Hop . | . . . Pick Up 10 | 3 7 . Fast Attach 9 | 6 3 . Attach 6 | . 2 4 Detach . | . . . Swap 3 | 1 1 1 Drop 2 | . 2 . Fire 33 | . 28 5 Melee . | . . . Ram . | . . . Kick . | . . . Crush . | . . . Escape Stasis . | . . . Rewire . | . . . Trap . | . . . Miscellaneous . | . . . Route ------- -11/Scrapyard -10/Materials (discovered 2 exits: [*Mat] / [*Min]) -10/Mines History --------- Turn | Location | Event 22 | -11/Scrapyard | Discovered new exit (range 16) 44 | -11/Scrapyard | Entered Materials 153 | -10/Materials | Destroyed 8 combat bots 194 | -10/Materials | Discovered new exit (range 9) 199 | -10/Materials | Discovered new exit (range 16) 240 | -10/Materials | Entered Mines 241 | -10/Mines | Assembled infested the area 248 | -10/Mines | Core integrity fell below 50% 254 | -10/Mines | Core integrity fell below 20% 259 | -10/Mines | Destroyed by as-90772 with Assembled Rifle Last Messages --------------- 00244_ as-22830 destroyed. 00245_ Wheel destroyed. 00245_ System corrupted by crushing effect (+1). 00245_ Knocked back. 00246_ Destroyed Asb. F-torch. 00246_ as-28989 destroyed. 00247_ as-91532 destroyed. 00248_ Lgt. Armor Plating destroyed. 00249_ Destroyed Asb. F-torch. 00249_ as-33272 destroyed. 00249_ as-16246 destroyed. 00249_ as-10025 destroyed. 00249_ as-82601 destroyed. 00250_ Wheel destroyed. 00250_ Assault Rifle destroyed. 00250_ Grenade Launcher destroyed. 00256_ as-00177 destroyed. 00257_ Ion Engine destroyed. 00258_ as-93319 destroyed. 00259_ The unstable cave ceiling collapses. Map ----- +----------------------------------------------------+ | ?????????????????????????????????????????????????? | | ?????????????????????????????????????????????????? | | ?????????????????????????????????????????????????? | | ?????????????????????????????????????????????????? | | ?????????????????????????????????????????????????? | | ?????????????????????????????????????????????????? | | ?????????????????????????????????????????????????? | | ?????????????????????????????????????????????????? | | ?????????????????????????????????????????????????? | | ?????????????????????????????????????????????????? | | ?????????????????????????????????????????????????? | | ??????????????????????????#####??????????????????? | | ?????????????????????????? ??????????????????? | | ?????????????????????????? $??????????????????? | | ?????????????????????????? ##?????????????????? | | ??????????????????????????% #?????????????????? | | ?????????????????????????? " #?????????????????? | | ????????????????????????## a ##????????????????? | | ???????????????????????? a ?????????????????? | | ???????????????????????? ??????????????????? | | ?????????????????????#??# aa ##?????????????????? | | ?????????????????????# ?# # #?????????????????? | | ????????????????????##a## ##?????????????????? | | ???????????????????## % ##????????????????? | | ???????????????????# aa ##???????????????? | | ???????????????????# @ #???????????????? | | ???????????????????# #??????????????? | | ???????????????????## #?????????????? | | ????????????????????## #????????????? | | ?????????????????????# ##### ??????????? | | ?????????????????????# ##????? ?????????? | | ?????????????????????# #??????? ?????????? | | ?????????????????????## #????????? ?????????? | | ?????????????????????? #??????????#??????????? | | ?????????????????????? #?????????????????????? | | ?????????????????????### ?????????????????????? | | ???????????????????????# ?????????????????????? | | ???????????????????????## #?????????????????????? | | ?????????????????????????##??????????????????????? | | ?????????????????????????????????????????????????? | | ?????????????????????????????????????????????????? | | ?????????????????????????????????????????????????? | | ?????????????????????????????????????????????????? | | ?????????????????????????????????????????????????? | | ?????????????????????????????????????????????????? | | ?????????????????????????????????????????????????? | | ?????????????????????????????????????????????????? | | ?????????????????????????????????????????????????? | | ?????????????????????????????????????????????????? | | ?????????????????????????????????????????????????? | +----------------------------------------------------+ Best States ------------- Heat Dissipation 25 Energy Generation 10 Energy Capacity 250 Matter Stores 224 Matter Capacity 300 Sight Range 16 Terrain Scan Density 10 Armor Coverage 150 Evasion (%) 44 Item Schematics ----------------- None Robot Schematics ------------------ None Fabricated ------------ Nothing Alien Tech Used ----------------- None Achievements -------------- None Challenges ------------ None Game ------ Seed DynamicMissileMace Manual? 0 Play Time 00:05:32 Cumulative 41.5 hours Start 2022.06.27 @ 21:26:40 End 2022.06.27 @ 21:31:41 Sessions 1 Manual Loads 0 Difficulty Rogue Special Mode None Game No. 26 Rogue 23 Adventurer 0 Explorer 3 Win Type - Total 1 Types 1/0/0/0/0/0/0/0/0 Lore% 22 Gallery% 39 Achievement% 31 Wizard Run 0 Options --------- ASCII 0 Keyboard 0 Movement Mouse Keybinds 0 Fullscreen 1 Font 18/SmallcapsGlow Map View 76x50 Tactical HUD 1 Map Filters NONE Filters NONE Steam 0 RUN: b914174e-d7e7-4f6f-8530-172738d88ffe